Cogmind - Beta 17 @@@ ROGUE MODE // 2026.07.24 @ 19:26:16 Player: Blaf Result: Destroyed by G-50 Soldier with Heavy Laser Performance ------------- Evolutions (1) 500 Regions Visited (5) 1000 Robots Destroyed (26) 130 Value Destroyed (617) 617 Prototype IDs (1) 20 Alien Tech Used (0) 0 Bonus (0) 0 TOTAL SCORE: 2267 Bonus ------- None Cogmind --------- Core Integrity 0/400 Matter 294/300 Energy 250/250 System Corruption 0% Temperature Cool (18) Movement Walking (120) Location -8/Mines Parts ------- > --- POWER (1) -------- Ion Engine > --- PROPULSION (2) --- Aluminum Leg Aluminum Leg > --- UTILITY (4) ------ Small Storage Unit Signal Interpreter Terrain Scan Processor > --- WEAPON (2) ------- Assault Rifle Assault Rifle > --- INVENTORY (8) ---- Light Fission Core Hover Unit Hover Unit Assault Rifle Heavy Assault Rifle Peak State ------------ > --- POWER ------------ Ion Engine > --- PROPULSION ------- Improved Flight Unit Improved Flight Unit > --- UTILITY ---------- Small Storage Unit Signal Interpreter > --- WEAPON ----------- Assault Rifle Assault Rifle > --- INVENTORY -------- VTOL Module VTOL Module VTOL Module Sensor Array Assault Rifle Assault Rifle Assault Rifle Assault Rifle [Rating: 12] Favorites ----------- Power Ion Engine Engine Ion Engine Propulsion Aluminum Leg Leg Aluminum Leg Hover Unit Hover Unit Flight Unit Improved Flight Unit Utility Small Storage Unit Device Sensor Array Storage Small Storage Unit Processor Signal Interpreter Protection Light Armor Plating Weapon Assault Rifle Energy Gun Medium Laser Ballistic Gun Assault Rifle Build | -11 -10 -9 -9 -9 -8 ------- Run | Yrd Mat Mat Min Exi Min Slots Evolved 2 | . . 2 . . . Power . | . . . . . . Propulsion . | . . . . . . Utility 2 | . . 2 . . . Weapon . | . . . . . . Parts Attached 34 | 7 11 6 10 . . Power 4 | 1 . 2 1 . . Engine 4 | 1 . 2 1 . . Core . | . . . . . . Reactor . | . . . . . . Propulsion 14 | 2 5 1 6 . . Treads . | . . . . . . Leg 4 | 2 . . 2 . . Wheel . | . . . . . . Hover 7 | . 2 1 4 . . Flight 3 | . 3 . . . . Utility 7 | 1 2 3 1 . . Device 1 | . . 1 . . . Storage 3 | 1 1 . 1 . . Processor 2 | . 1 1 . . . Hackware . | . . . . . . Protection 1 | . . 1 . . . Artifact . | . . . . . . Weapon 9 | 3 4 . 2 . . Energy Gun 2 | 2 . . . . . Energy Cannon . | . . . . . . Ballistic Gun 7 | 1 4 . 2 . . Ballistic Cannon . | . . . . . . Launcher . | . . . . . . Special Weapon . | . . . . . . Impact Weapon . | . . . . . . Slashing Weapon . | . . . . . . Piercing Weapon . | . . . . . . Special Melee Weapon . | . . . . . . Unidentified Prototypes 1 | . 1 . . . . Parts Lost 11 | . . 4 7 . . Power 2 | . . 1 1 . . Propulsion 5 | . . 2 3 . . Utility 2 | . . 1 1 . . Weapon 2 | . . . 2 . . Highest Loss Streak 4 | . . 2 4 . . To Critical Strikes . | . . . . . . Average Backups 5 | 2 7 7 5 4 5 Power . | . . . . . 1 Propulsion 2 | . 3 4 2 2 2 Utility . | . . . . . . Weapon 2 | . 3 3 2 2 2 Tool/Special . | . . . . . . Unused Backups 12 | . 4 5 . . 3 Power 2 | . 1 . . . 1 Propulsion 7 | . 3 4 . . . Utility . | . . . . . . Weapon 3 | . . 1 . . 2 Tool/Special . | . . . . . . Average Slot Usage (%) 86 | . 91 80 83 88 88 Engine 10 | . 14 6 10 11 11 Leg 13 | . 6 . 9 22 22 Hover 5 | . 3 18 8 . . Flight 2 | . 15 . . . . Device 1 | . . 8 . . . Storage 11 | . 14 11 11 11 11 Processor 17 | . 8 12 22 22 22 Ballistic Gun 22 | . 26 22 18 22 22 Peak Build Rating 12 | 6 12 10 10 10 10 Average Rating 8 | 4 9 7 8 9 10 On Entrance 7 | . 6 8 9 9 10 Avg Prop Armor Cover (%) . | . . . . . . Naked Turns . | . . . . . . Heaviest Build 19 | 13 19 15 19 14 14 Greatest Support 20 | 20 20 12 20 20 20 Greatest Overweight (x) 4 | 1 4 2 4 . . Average Overweight (x) . | . . . . . . Largest Inventory Capacity 10 | 8 10 8 8 8 8 Average Capacity 8 | 6 8 8 8 8 8 Most Carried 9 | 5 9 8 8 5 5 Average Carried 5 | 2 7 7 5 4 5 Final Capacity 8 | 8 8 8 8 8 8 Final Carried 8 | 4 8 8 5 5 5 Class Distribution -------------------- 54% | Scavenger-Mutant 45% | Mutant Dominant Class ---------------- Mutant | -10/Materials Mutant | -9/Materials Mutant | -9/Mines Scavenger-Mutant | -9/Exiles Scavenger-Mutant | -8/Mines Resources | -11 -10 -9 -9 -9 -8 ----------- Run | Yrd Mat Mat Min Exi Min Matter Collected 907 | 247 157 280 223 . . Remotely . | . . . . . . Salvage Created 906 | . 157 443 306 . . Parts 61 | . 15 25 21 . . Haulers Intercepted . | . . . . . . Recyclers Shooed 3 | . 1 2 . . . Parts Field Recycled . | . . . . . . Retrieved Matter . | . . . . . . Parts Self-Destructed . | . . . . . . Prevented . | . . . . . . Parts Restored . | . . . . . . Kills | -11 -10 -9 -9 -9 -8 ------- Run | Yrd Mat Mat Min Exi Min Combat Hostiles Destroyed 22 | . 8 5 9 . . Guns 22 | . 8 5 9 . . Classes Destroyed 6 | . 2 4 . . . Builder 1 | . . 1 . . . Tunneler 1 | . . 1 . . . Recycler 2 | . . 2 . . . Swarmer 9 | . 6 . 3 . . Grunt 11 | . 2 3 6 . . Sentry 2 | . . 2 . . . Best Kill Streak 8 | . 8 5 3 . . Combat Bots Only 8 | . 8 3 3 . . Max Kills in Single Turn 2 | . 2 1 1 . . Gunslinging . | . . . . . . Exploded . | . . . . . . Melee . | . . . . . . Uniques/NPCs Destroyed . | . . . . . . Combat | -11 -10 -9 -9 -9 -8 -------- Run | Yrd Mat Mat Min Exi Min Hostile Shots Fired 164 | . 32 43 74 . 15 Missed 54 | . 11 14 25 . 4 Hits 110 | . 21 29 49 . 11 Projectile 110 | . 21 29 49 . 11 Critical Strikes 4 | . . 1 2 . 1 Damage Taken 1422 | . 186 427 621 . 188 Core 421 | . 10 134 176 . 101 Absorbed by Shields . | . . . . . . Core Remaining (%) 98 | 100 96 . . . . Volleys Fired 76 | . 14 28 33 . 1 Largest 2 | . 2 2 2 . 2 Hottest 40 | . 40 40 40 . 40 Shots Fired 132 | . 28 56 46 . 2 Gun 132 | . 28 56 46 . 2 Cannon . | . . . . . . Launcher . | . . . . . . Special . | . . . . . . Kinetic 132 | . 28 56 46 . 2 Thermal . | . . . . . . Explosive . | . . . . . . Electromagnetic . | . . . . . . Robot Hit Streak 7 | . 6 7 4 . 4 Robot Miss Streak 4 | . 4 3 2 . 1 Penetration Max . | . . . . . . Secondary Targets 5 | . 3 . 2 . . Max Gunslinging Chain 1 | . 1 . 1 . . Shots Hit Robots 77 | . 14 35 27 . 1 Core Hits 44 | . 11 18 15 . . Critical Kills 1 | . . . 1 . . Critical Parts Destroyed 1 | . . . 1 . . Critical Strikes 2 | . . . 2 . . Destroy 2 | . . . 2 . . Melee Attacks . | . . . . . . Impact . | . . . . . . Slashing . | . . . . . . Piercing . | . . . . . . Sneak Attacks . | . . . . . . Combat Hostiles . | . . . . . . Follow-up Attacks . | . . . . . . Damage Inflicted 1033 | . 225 452 345 . 11 Guns 1029 | . 221 452 345 . 11 Cannons . | . . . . . . Explosions . | . . . . . . Melee . | . . . . . . Ramming 4 | . 4 . . . . Kinetic 1029 | . 221 452 345 . 11 Thermal . | . . . . . . Explosive . | . . . . . . Electromagnetic . | . . . . . . Impact . | . . . . . . Slashing . | . . . . . . Piercing . | . . . . . . Highest Corruption 2 | . 2 . . . . Average Corruption 2 | . 2 . . . . Corruption Purged . | . . . . . . Corruption Blocked . | . . . . . . Effects 10 | . 10 . . . . Message Errors 3 | . 3 . . . . Matter Fused 3 | . 3 . . . . Energy Discharges 1 | . 1 . . . . Data Loss (minor) 1 | . 1 . . . . Data Loss (major) 1 | . 1 . . . . Alerts 1 | . 1 . . . . Overload Shots . | . . . . . . Overflow Damage . | . . . . . . Projectiles . | . . . . . . Explosions . | . . . . . . Melee . | . . . . . . Knockbacks . | . . . . . . Impact . | . . . . . . Kinetic . | . . . . . . Secondary . | . . . . . . Self-Inflicted Damage 2 | . 2 . . . . Shots . | . . . . . . Rammed 1 | . 1 . . . . Targets Rammed 1 | . 1 . . . . Kicked . | . . . . . . Crushed . | . . . . . . Highest Temperature 26 | . 1 15 26 . 4 Average Temperature 9 | . 1 2 13 . 4 Received Heat Transfer 663 | . 18 222 306 . 117 Siege Activations . | . . . . . . Martial Activations . | . . . . . . Shielding Activations . | . . . . . . Robots Disrupted . | . . . . . . Combat Hostiles . | . . . . . . Robots Corrupted . | . . . . . . Combat Hostiles . | . . . . . . Parts Fried . | . . . . . . Impact Corruptions . | . . . . . . Robots Melted . | . . . . . . Combat Hostiles . | . . . . . . Parts Melted . | . . . . . . Heat Transferred . | . . . . . . Parts Sabotaged . | . . . . . . Parts Stolen . | . . . . . . Parts Stripped . | . . . . . . Power Chain Reactions . | . . . . . . Alert | -11 -10 -9 -9 -9 -8 ------- Run | Yrd Mat Mat Min Exi Min Maximum Alert Level . | . . . . . . Low Security (%) 100 | 100 100 100 100 . 100 Level 1 . | . . . . . . Level 2 . | . . . . . . Level 3 . | . . . . . . Level 4 . | . . . . . . Level 5 . | . . . . . . High Security . | . . . . . . Max Security . | . . . . . . Peak Influence 185 | . 185 104 103 . . Initial 37 | . . 37 33 . . Average 49 | . 62 33 69 . . Influence Increases 746 | . 205 256 285 . . Destroy 0b10 Robot/C 440 | . 160 100 180 . . Destroy 0b10 Robot/NC 20 | . . 20 . . . Destroy Leader 90 | . 30 30 30 . . Destroy Structure 1 | . . 1 . . . Lose Combat Pursuer 195 | . 15 105 75 . . Influence Decreases 746 | . 116 259 321 50 . Entered New Map 155 | . . 52 53 50 . Time Decay 481 | . 116 167 198 . . Lost Part 110 | . . 40 70 . . Squads Dispatched 3 | . 1 2 . . . Investigation . | . . . . . . Extermination . | . . . . . . Reinforcement 3 | . 1 2 . . . Assault . | . . . . . . Garrison . | . . . . . . Intercept . | . . . . . . Searches Triggered . | . . . . . . Construction Impeded . | . . . . . . Haulers Reinforced . | . . . . . . Active Scanning Responses . | . . . . . . Cargo Convoy Interrupts . | . . . . . . Stealth | -11 -10 -9 -9 -9 -8 --------- Run | Yrd Mat Mat Min Exi Min Distress Signals 7 | . 4 3 . . . Communications Jammed . | . . . . . . Distress Signals . | . . . . . . Times Spotted 56 | . 13 23 14 . 6 Peak Tracking Total 7 | . 5 7 3 . 6 Tactical Retreats 10 | . 1 6 3 . . Traps | -11 -10 -9 -9 -9 -8 ------- Run | Yrd Mat Mat Min Exi Min Traps Triggered 1 | . . 1 . . . Indirectly . | . . . . . . Trap Hack Attempts . | . . . . . . Triggered . | . . . . . . Disarmed . | . . . . . . Reprogrammed . | . . . . . . Reused . | . . . . . . Traps Extracted . | . . . . . . Installed . | . . . . . . Triggered . | . . . . . . Machines | -11 -10 -9 -9 -9 -8 ---------- Run | Yrd Mat Mat Min Exi Min Machines Disabled . | . . . . . . Max in Single Turn . | . . . . . . Machines Repaired . | . . . . . . Machines Dismantled . | . . . . . . Machines Sabotaged . | . . . . . . Overloaded Fab Kills . | . . . . . . Hacking | -11 -10 -9 -9 -9 -8 --------- Run | Yrd Mat Mat Min Exi Min Machines Accessed 4 | . 1 2 . 1 . Terminals 1 | . . 1 . . . Fabricators . | . . . . . . Repair Stations . | . . . . . . Recycling Units 2 | . 1 1 . . . Scanalyzers . | . . . . . . Garrison Access . | . . . . . . Total Hacks 7 | . 2 4 . 1 . Successful 3 | . 1 1 . 1 . Failed 4 | . 1 3 . . . Catastrophic . | . . . . . . Database Lockouts . | . . . . . . Manual 2 | . . 2 . . . Terminals 2 | . . 2 . . . Fabricators . | . . . . . . Repair Stations . | . . . . . . Recycling Units 4 | . 2 2 . . . Scanalyzers . | . . . . . . Garrison Access . | . . . . . . Terminal Hacks 1 | . . . . 1 . Record 1 | . . . . 1 . Fabricator Hacks . | . . . . . . Repair Station Hacks . | . . . . . . Recycling Unit Hacks 2 | . 1 1 . . . Retrieve Components 2 | . 1 1 . . . Scanalyzer . | . . . . . . Garrison Access Hacks . | . . . . . . Unauthorized Hacks . | . . . . . . Terminals . | . . . . . . Fabricators . | . . . . . . Repair Stations . | . . . . . . Recycling Units . | . . . . . . Scanalyzers . | . . . . . . Garrison Access . | . . . . . . Data Cores Recovered . | . . . . . . Used . | . . . . . . Hacking Detections 1 | . . 1 . . . Full Trace Events . | . . . . . . Feedback Events . | . . . . . . Feedback Blocked . | . . . . . . Robot Schematics Acquired . | . . . . . . Robots Built . | . . . . . . Authchips . | . . . . . . Time . | . . . . . . Total Robot Build Rating . | . . . . . . Part Schematics Acquired . | . . . . . . Parts Built . | . . . . . . Authchips . | . . . . . . Time . | . . . . . . Total Part Build Rating . | . . . . . . Part Studies Acquired . | . . . . . . Parts Repaired . | . . . . . . Time . | . . . . . . Parts Recycled . | . . . . . . Recycled Matter . | . . . . . . Retrieved Matter . | . . . . . . Retrieved Components 11 | . 10 1 . . . Parts Scanalyzed . | . . . . . . Part Schematics Acquired . | . . . . . . Parts Damaged . | . . . . . . Bothacking | -11 -10 -9 -9 -9 -8 ------------ Run | Yrd Mat Mat Min Exi Min Used RIF Installer . | . . . . . . Robots Hacked . | . . . . . . Non-combat . | . . . . . . Combat . | . . . . . . Robot Hacks Applied . | . . . . . . Relay Couplers Released . | . . . . . . Fabnet Peak Effective % . | . . . . . . Robots Rewired . | . . . . . . Allies Hacked . | . . . . . . Hacks Repelled . | . . . . . . Allies | -11 -10 -9 -9 -9 -8 -------- Run | Yrd Mat Mat Min Exi Min Total Allies . | . . . . . . Largest Group . | . . . . . . Highest-Rated Group . | . . . . . . Highest-Rated Ally . | . . . . . . Total Orders . | . . . . . . Ally Attacks . | . . . . . . Total Damage . | . . . . . . Kills . | . . . . . . Allies Corrupted . | . . . . . . Allies Melted . | . . . . . . Intel | -11 -10 -9 -9 -9 -8 ------- Run | Yrd Mat Mat Min Exi Min Active Infowar (turns) 381 | . . 381 . . . Sensors 381 | . . 381 . . . Robot Analysis Total . | . . . . . . Derelict Logs Recovered 2 | . . . 2 . . Drone Launches . | . . . . . . Drone Recoveries . | . . . . . . Exploration | -11 -10 -9 -9 -9 -8 ------------- Run | Yrd Mat Mat Min Exi Min Turns Passed 2902 | 92 527 494 408 1332 49 Spaces Moved 2312 | 71 371 378 345 1109 38 Core 17 | 13 1 . 3 . . Treads . | . . . . . . Legs 1443 | 58 92 . 146 1109 38 Wheels . | . . . . . . Hover 638 | . 64 378 196 . . Flight 214 | . 214 . . . . Fastest Speed 37 | 50 37 56 56 120 120 Average Speed 112 | 110 120 103 91 120 120 Slowest Speed 250 | 120 250 180 250 120 120 Overloaded Moves . | . . . . . . Propulsion Burnouts . | . . . . . . Robots Hopped . | . . . . . . Potential Cave-ins . | . . . . . . Cave-ins Triggered . | . . . . . . Exploration Rate (%) 34 | 3 31 32 45 91 7 Regions Visited 5 Branch Regions 3 Pre-discovered Areas . | . . . . . . Known Exits Taken 4 | . 1 1 1 1 . Unknown Exits Taken 1 | 1 . . . . . Scrap Searched 1 | . . . 1 . . Spaces Dug . | . . . . . . Terrain Destroyed . | . . . . . . Melee . | . . . . . . Projectile . | . . . . . . AOE . | . . . . . . Terrain Rammed . | . . . . . . Walls Destroyed . | . . . . . . Machines Disabled . | . . . . . . Actions | -11 -10 -9 -9 -9 -8 --------- Run | Yrd Mat Mat Min Exi Min Total 2479 | 82 430 428 390 1110 39 Wait 4 | . . 4 . . . Move 2307 | 70 370 377 344 1108 38 Hop . | . . . . . . Pick Up 23 | 4 11 7 . 1 . Fast Attach 23 | 6 9 4 4 . . Attach 12 | 1 3 2 6 . . Detach 11 | 1 7 . 3 . . Swap . | . . . . . . Drop 22 | . 15 6 . 1 . Fire 76 | . 14 28 33 . 1 Melee . | . . . . . . Ram 1 | . 1 . . . . Kick . | . . . . . . Crush . | . . . . . . Escape Stasis . | . . . . . . Rewire . | . . . . . . Trap . | . . . . . . Miscellaneous . | . . . . . . Route ------- -11/Scrapyard -10/Materials (discovered 2 exits: *Mat / [*Min]) -9/Materials -9/Mines (discovered 2 exits: *Mat / *Exi) -9/Exiles (discovered 2 exits: *Min x2) -8/Mines History --------- Turn | Location | Event 4 | -11/Scrapyard | Discovered new exit (range 15) 93 | -11/Scrapyard | Entered Materials 94 | -10/Materials | Met a group of wandering Federalists 332 | -10/Materials | Build established: Mutant 351 | -10/Materials | Discovered new exit (range 7) 428 | -10/Materials | Destroyed 8 combat bots 602 | -10/Materials | Discovered new exit (range 15) 618 | -10/Materials | Identified exit to Materials 620 | -10/Materials | Entered another Materials area 620 | -9/Materials | Evolved 2 slots: Utility x2 1079 | -9/Materials | Discovered new exit (range 9) 1113 | -9/Materials | Identified exit to Mines 1114 | -9/Materials | Entered Mines 1211 | -9/Mines | Deemed a non-threat by the Exiles lab entrance 1212 | -9/Mines | Discovered new exit (range 5) 1228 | -9/Mines | Learned 2 Materials zone layouts 1300 | -9/Mines | Core integrity fell below 50% 1347 | -9/Mines | Lost 4 parts (1p2n1w) 1359 | -9/Mines | Discovered new exit (range 8) 1371 | -9/Mines | Identified exit to Materials 1519 | -9/Mines | Identified exit to Exiles 1522 | -9/Mines | Entered Exiles 1552 | -9/Exiles | Met 8R-AWN 1575 | -9/Exiles | Met EX-HEX 1618 | -9/Exiles | Build established: Scavenger-Mutant 1623 | -9/Exiles | Met EX-BIN 1736 | -9/Exiles | Met EX-DEC 1784 | -9/Exiles | Visited The Gauntlet 1980 | -9/Exiles | Discovered new exit (range 14) 2334 | -9/Exiles | Discovered new exit (range 14) 2851 | -9/Exiles | Identified exit to Mines 2854 | -9/Exiles | Entered Mines 2886 | -8/Mines | Core integrity fell below 20% 2903 | -8/Mines | Destroyed by G-50 Soldier with Heavy Laser Last Messages --------------- chain! 01738_ EX-DEC: "Oops, I hope HEX didn't hear that..." 01954_ Dropped Sml. Storage Unit. 01980_ EXIT=FOUND 02181_ Connecting with DEC's Terminal... 02206_ Connecting with HEX's Terminal... >>Record "HEX-040/Superbattery" HEX: I have no idea what we're going to do with all this energy. ** DEC: I'm sure I can come up with a weapon that'll use every last bit of it in one go! 02334_ EXIT=FOUND 02416_ Acquired Rigged Lgt. Fission Core. 02522_ Connecting with EX-Message Board... 02597_ Extracted 4 energy. 02851_ EXIT=IDENTIFIED: MINES LOCATION=MINES GOAL=ESCAPE 02885_ Critical hit (Burn: +37). Map ----- +----------------------------------------------------+ | ?????????????????????????????????????????????????? | | ?????????????????????????????????????????????????? | | ?????????????????????????????????????????????????? | | ?????????????????????????????????????????????????? | | ?????????????????????????????????????????????????? | | ?????????????????????????????????????????????????? | | ?????????????????????????????????????????????????? | | ?????????????????????????????????????????????????? | | ?????????????????????????????????????????????????? | | ?????????????????????????????????????????????????? | | ?????????????????????????????????????????????????? | | ?????????????????????????????????????????????????? | | ?????????????????????????????????????????????????? | | ?????????????????????????????????????????????????? | | ?????????????????????????????????????????????????? | | ?????????????????????????????????????????????????? | | ???????????????????????#?????????????????????????? | | ???????????????????????# ????????????????????????? | | ???????????????????????# ???????????????????????? | | ???????????????????????# #####??????????????????? | | ??#######??????????????# #??????????????????? | | ??# t############ $ #??????????????????? | | ??# ###### #??????????????????? | | ??# """" ####g #??????????????????? | | ??????"""" ##### ## ggg #??????????????????? | | ??????"""" ?????# ## @l #??????????????????? | | ?????? ??????# ######??????????????????? | | ????? ????????##### ##???????????????????????? | | ????###?????????????#####????????????????????????? | | ?????????????????????????????????????????????????? | | ?????????????????????????????????????????????????? | | | | | | | | | | | | | | | | | | | | | | | | | | | | | | | | | | | | | | | +----------------------------------------------------+ Best States ------------- Heat Dissipation 28 Energy Generation 10 Energy Capacity 250 Matter Stores 300 Matter Capacity 300 Sight Range 16 Robot Scan Range 14 Terrain Scan Density 85 Armor Coverage 150 Evasion (%) 55 Item Schematics ----------------- None Robot Schematics ------------------ None Fabricated ------------ Nothing Repaired ---------- Nothing Studied --------- None Alien Tech Used ----------------- None Achievements -------------- None Challenges ------------ None Game ------ Seed UtilityLauncherHarness Manual? 0 Play Time 00:21:46 Cumulative 27.6 hours Start 2026.07.24 @ 19:04:44 End 2026.07.24 @ 19:26:16 Sessions 1 Manual Loads 0 Difficulty Rogue Special Mode None Game No. 45 Rogue 45 Adventurer 0 Explorer 0 Win Type - Total 0 Types 0/0/0/0/0/0/0/0/0/0 Lore% 8 Gallery% 18 Achievement% 17 Wizard Run 0 Options --------- Layout 1 ASCII 0 Keyboard 1 Movement Arrows Keybinds 0 Fullscreen 1 Font 24/Smallcaps Map View 50x35 Zoom Use 0% Tactical HUD 1 Map Filters NONE Filters NONE Steam 1 RUN: 2d40e4c5-a1ec-4ff6-8983-31aafa8a1cd0